Workbook

Sheet Sheet1
A1: Distance frem og tilbage til VSB Kaplevej til brug for godtgørelses beregning
A2: kampsted | B2: Adresse | C2: km pr rundtur
A3: Akademisk Boldklub | C3: 17
A4: Albertslund Stadion | C4: 50
A5: Allerød Idrætspark | B5: Møllemosevej 5, 3450 Allerød | C5: 40
A6: avedøre stadion | C6: 52
A7: Ballerup Idrætspark | C7: 32
A8: BSV | B8: Egebækvej 118, 2850 Nærum | C8: 16
A9: Birkerød Stadion | C9: 18
A10: Birkevang (hareskoven) | C10: =28.6*2 -> 57.2
A11: Boldklubben fremad valby | C11: =27.3*2 -> 54.6
A12: Brøndby | B12: Brøndby Stadion 30, 2605 Brøndby | C12: 46
A13: damsø | C13: =19.4*2 -> 38.8
A14: espergærde | B14: Gymnasievej 5, 3060 Espergærde | C14: =29.2*2 -> 58.4
A15: Emdrupparken | C15: 20
A16: farum | B16: Farum Park 18, 3520 Farum | C16: 30
A17: FIF-Stadion | C17: 0
A18: fremad amager | C18: =35.4*2 -> 70.8
A19: frederikssund | B19: Bjergvejen 7, 3600 Frederikssund | C19: =34.2*2 -> 68.4
A20: frederikssund | B20: Kalvøvej 7A, 3600 Frederikssund
A21: FA2000 (Frederiksberg) | C21: 46
A22: Frederiksværk Stadion | B22: Sportsvej 7, 3300 Frederiksværk | C22: =43.4*2 -> 86.8
A23: Gladsaxe skole | C23: 18
A24: Greve Idræts Center Kunstgræs | C24: 64
A25: Harboe Storhallen (holmegaard) | C25: =94.4*2 -> 188.8
A26: Helsinge | B26: Idrætsvej 21, 3200 Helsinge | C26: =47.3*2 -> 94.6
A27: hareskov if | C27: =15.7*2 -> 31.4
A28: herfølge | C28: 94
A29: Herlev Stadion | B29: Tvedvangen 200, 2730 Herlev | C29: 30
A30: Herlev Stadion kunstgræsbane | C30: 30
A31: herlufsholm | B31: Herlufsholm Alle 233, 4700 Næstved | C31: 92
A32: herstedøster | C32: 34
A33: hillerød | B33: Selskovvej 76,3400 Hillerød | C33: =29.8*2 -> 59.6
A34: Holbæk Stadion | C34: =2*73.5 -> 147
A35: Hollænderhallen | C35: 80
A36: Hornbæk idrætspark | B36: Carl Bødker Nielsens vej 3, 3100 Hornbæk | C36: 78
A37: Hvidovre stadion | C37: =26.2*2 -> 52.4
A38: Hørsholm | B38: Stadionalle 5, 2960 Rungsted Kyst | C38: =15.4*2 -> 30.8
A39: Hundested | B39: Stadionvej 40, 3390 Hundested | C39: =64.6*2 -> 129.2
A40: ishøj boldklub | C40: =29.3*2 -> 58.6
A41: Islev Skole | C41: 34
A42: Jægersborg | C42: 10
A43: karlslunde (hallerne) | B43: Kongens Enge 42, 2690 Karlslunde | C43: 76
A44: Kunst, Tingbjerg IP | C44: 13
A45: Kunst, Valby IP, tribunen | C45: 55
A46: køge | C46: 100
A47: lundtofte boldklub | C47: 12
A48: Lyngby Stadion | C48: =3.7*2 -> 7.4
A49: Måløv Idrætspark | C49: 32
A50: Melby liseleje boldklub | B50: Tollerupvej 27B, 3370 Melby | C50: 101
A51: Nyhøj Idrætsanlæg | C51: 60
A52: nivå kokkedal | C52: 39
A53: Næstved Stadion | C53: 94
A54: nykøbing falster fc | C54: =141*2 -> 282
A55: odsherred | B55: Ravnsbjergvej 25A, 4560 Vig | C55: =2*93 -> 186
A56: Oppe-Sundby Stadion | C56: 65
A57: roskilde kunst Hemmelev | C57: 78
A58: ringsted | B58: Anlægsvej 15, 4100 Ringsted | C58: =73*2 -> 146
A59: rungsted | C59: 60
A60: skovlunde | C60: 32
A61: slagelse | B61: Hjorthøjvej 57, 4200 Slagelse | C61: 212
A62: slangerup stadion | C62: 52
A63: Snekkersten | C63: 60
A64: Spraglehøj Idrætsanlæg | C64: =36*2 -> 72
A65: Stadion Vest (slagelse) | C65: 210
A66: Stavnsholt (farum) | C66: 22
A67: Sundby/Kløvermarken | C67: 50
A68: Svogerslev Idrætspark | C68: 80
A69: Sønderkærskolen | C69: 60
A70: Taastrup fc | C70: =31.2*2 -> 62.4
A71: Top Danmark Hallen (BSF) | C71: 32
A72: Tølløse | C72: =76*2 -> 152
A73: tuse | C73: 152
A74: vanløse ip | B74: Idræts Alle 2, 2625 Vallensbæk | C74: 34
A75: vallensbæk | C75: 36
A76: Vemmelev | B76: Skolevej 2, 4241 Vemmelev | C76: 218
A77: vestia enghavevej 90 2450 | C77: =17.4*2 -> 34.8
A78: Vestamager Idrætsanlæg | C78: 50
A79: Virum Stadion | C79: 4
A80: Virumgård kunstgræsbane | C80: 4
A81: Ølstykke Stadion | C81: 60

Sheet Sheet2

Sheet Sheet3
